[Event "Early-Titled-Tuesday-Blitz-August-29-2023"]
[Site "Chess.com"]
[Date "2023.08.29"]
[Round "11"]
[White "AquivaRubinstein"]
[Black "zozik"]
[Result "1-0"]
[WhiteElo "2470"]
[BlackElo "2346"]
[TimeControl "180+1"]
[EndTime "10:06:42 PDT"]
[Termination "AquivaRubinstein won by checkmate"]

1. d4 {[%clk 0:03:00.9]} 1... d5 {[%clk 0:02:43.8]} 2. c4 {[%clk 0:02:59.8]}
2... e6 {[%clk 0:02:43.1]} 3. Nc3 {[%clk 0:03:00.1]} 3... c5 {[%clk 0:02:40.6]}
4. cxd5 {[%clk 0:02:58.7]} 4... exd5 {[%clk 0:02:41.5]} 5. Nf3 {[%clk
0:02:58.7]} 5... Nc6 {[%clk 0:02:42]} 6. dxc5 {[%clk 0:02:55.8]} 6... Nf6 {[%clk
0:02:42.1]} 7. Bg5 {[%clk 0:02:54.1]} 7... Bxc5 {[%clk 0:02:39.2]} 8. e3 {[%clk
0:02:54.1]} 8... O-O {[%clk 0:02:38.7]} 9. Be2 {[%clk 0:02:54.3]} 9... Be6
{[%clk 0:02:32.8]} 10. O-O {[%clk 0:02:54.3]} 10... h6 {[%clk 0:02:33.1]} 11.
Bh4 {[%clk 0:02:53.2]} 11... Be7 {[%clk 0:02:29.3]} 12. Nb5 {[%clk 0:02:47.9]}
12... Qd7 {[%clk 0:02:25]} 13. Nbd4 {[%clk 0:02:47]} 13... Ne4 {[%clk
0:02:21.5]} 14. Bxe7 {[%clk 0:02:45.4]} 14... Qxe7 {[%clk 0:02:22]} 15. Rc1
{[%clk 0:02:38.1]} 15... Rac8 {[%clk 0:02:21.2]} 16. Nxc6 {[%clk 0:02:35.3]}
16... Rxc6 {[%clk 0:02:19.9]} 17. Rxc6 {[%clk 0:02:20.6]} 17... bxc6 {[%clk
0:02:20.8]} 18. Qa4 {[%clk 0:02:19.8]} 18... Qb7 {[%clk 0:02:15.5]} 19. b4
{[%clk 0:02:14.6]} 19... Rb8 {[%clk 0:02:13.3]} 20. a3 {[%clk 0:02:11.4]} 20...
Nc3 {[%clk 0:02:11.6]} 21. Qc2 {[%clk 0:02:10.4]} 21... Nxe2+ {[%clk 0:02:12.2]}
22. Qxe2 {[%clk 0:02:11.2]} 22... Bg4 {[%clk 0:02:12.1]} 23. Rc1 {[%clk
0:02:09.5]} 23... Bxf3 {[%clk 0:01:43.9]} 24. Qxf3 {[%clk 0:01:44.3]} 24... Qa6
{[%clk 0:01:42.2]} 25. Qf4 {[%clk 0:01:44.1]} 25... Rb7 {[%clk 0:01:31.8]} 26.
h4 {[%clk 0:01:10.6]} 26... Qxa3 {[%clk 0:01:28.7]} 27. Rxc6 {[%clk 0:01:09.7]}
27... Qd3 {[%clk 0:00:52.8]} 28. Rd6 {[%clk 0:00:33.1]} 28... Qe4 {[%clk
0:00:41.9]} 29. Rd8+ {[%clk 0:00:24]} 29... Kh7 {[%clk 0:00:40.7]} 30. Qxe4+
{[%clk 0:00:16.6]} 30... dxe4 {[%clk 0:00:41.6]} 31. Rd4 {[%clk 0:00:16.9]}
31... f5 {[%clk 0:00:41.2]} 32. h5 {[%clk 0:00:16.6]} 32... g6 {[%clk
0:00:40.4]} 33. hxg6+ {[%clk 0:00:14.6]} 33... Kxg6 {[%clk 0:00:41.3]} 34. Kh2
{[%clk 0:00:15.1]} 34... Kg5 {[%clk 0:00:41.3]} 35. Kg3 {[%clk 0:00:15.5]} 35...
h5 {[%clk 0:00:41.3]} 36. f4+ {[%clk 0:00:14.2]} 36... exf3 {[%clk 0:00:39.9]}
37. gxf3 {[%clk 0:00:14.7]} 37... Re7 {[%clk 0:00:38.9]} 38. Kf2 {[%clk
0:00:13.5]} 38... h4 {[%clk 0:00:36.2]} 39. Rd8 {[%clk 0:00:13.5]} 39... Rb7
{[%clk 0:00:35]} 40. Rg8+ {[%clk 0:00:12.5]} 40... Kf6 {[%clk 0:00:33.9]} 41.
Rf8+ {[%clk 0:00:10.9]} 41... Kg6 {[%clk 0:00:33.9]} 42. Rg8+ {[%clk 0:00:11]}
42... Kf7 {[%clk 0:00:31]} 43. Ra8 {[%clk 0:00:07.9]} 43... Rxb4 {[%clk
0:00:26.4]} 44. Rxa7+ {[%clk 0:00:07.4]} 44... Kg6 {[%clk 0:00:26.9]} 45. Kg2
{[%clk 0:00:05.6]} 45... Rb3 {[%clk 0:00:25.9]} 46. Re7 {[%clk 0:00:05.7]} 46...
Kg5 {[%clk 0:00:22.4]} 47. Kh3 {[%clk 0:00:05.8]} 47... Rd3 {[%clk 0:00:18.8]}
48. Re8 {[%clk 0:00:05.8]} 48... Kh5 {[%clk 0:00:18.4]} 49. f4 {[%clk 0:00:05]}
49... Ra3 {[%clk 0:00:14.4]} 50. Re6 {[%clk 0:00:05.3]} 50... Ra1 {[%clk
0:00:12.2]} 51. Re8 {[%clk 0:00:05.2]} 51... Rh1+ {[%clk 0:00:12.1]} 52. Kg2
{[%clk 0:00:05.1]} 52... Re1 {[%clk 0:00:12.5]} 53. Kf2 {[%clk 0:00:04.5]} 53...
Rb1 {[%clk 0:00:11.5]} 54. Rg8 {[%clk 0:00:05.1]} 54... Rb2+ {[%clk 0:00:08.2]}
55. Kf3 {[%clk 0:00:05]} 55... h3 {[%clk 0:00:07.6]} 56. Rh8+ {[%clk 0:00:05.1]}
56... Kg6 {[%clk 0:00:07]} 57. Rxh3 {[%clk 0:00:05.9]} 57... Kf7 {[%clk
0:00:06.2]} 58. Rh6 {[%clk 0:00:05.4]} 58... Rb1 {[%clk 0:00:05.8]} 59. Ra6
{[%clk 0:00:05.4]} 59... Rf1+ {[%clk 0:00:05.4]} 60. Kg3 {[%clk 0:00:05.3]}
60... Rg1+ {[%clk 0:00:05.2]} 61. Kf2 {[%clk 0:00:05.5]} 61... Rb1 {[%clk
0:00:04.6]} 62. Ke2 {[%clk 0:00:05.8]} 62... Rb3 {[%clk 0:00:04.1]} 63. Kf3
{[%clk 0:00:06.2]} 63... Rb1 {[%clk 0:00:04.1]} 64. Ra7+ {[%clk 0:00:06.6]}
64... Kf6 {[%clk 0:00:03.5]} 65. Ra6+ {[%clk 0:00:07.1]} 65... Kf7 {[%clk
0:00:04.2]} 66. Ra5 {[%clk 0:00:07.6]} 66... Kf6 {[%clk 0:00:04.6]} 67. Re5
{[%clk 0:00:08]} 67... Kg6 {[%clk 0:00:04.6]} 68. Re8 {[%clk 0:00:08]} 68... Kf7
{[%clk 0:00:04.9]} 69. Re5 {[%clk 0:00:07.4]} 69... Kf6 {[%clk 0:00:04.4]} 70.
Ke2 {[%clk 0:00:07.9]} 70... Kg6 {[%clk 0:00:04.6]} 71. Kd3 {[%clk 0:00:08.3]}
71... Kf6 {[%clk 0:00:04.9]} 72. Kd4 {[%clk 0:00:08.5]} 72... Rd1+ {[%clk
0:00:05.2]} 73. Kc5 {[%clk 0:00:08.4]} 73... Rc1+ {[%clk 0:00:06.1]} 74. Kd6
{[%clk 0:00:08.4]} 74... Rd1+ {[%clk 0:00:06.3]} 75. Rd5 {[%clk 0:00:08.5]}
75... Re1 {[%clk 0:00:06.9]} 76. Rd3 {[%clk 0:00:07.2]} 76... Rc1 {[%clk
0:00:06.4]} 77. Kd7 {[%clk 0:00:07.2]} 77... Ra1 {[%clk 0:00:05.9]} 78. Rd6+
{[%clk 0:00:07.4]} 78... Kf7 {[%clk 0:00:04.6]} 79. Rd5 {[%clk 0:00:06.5]} 79...
Ra7+ {[%clk 0:00:04.1]} 80. Kc6 {[%clk 0:00:06.5]} 80... Ra3 {[%clk 0:00:04.6]}
81. Rxf5+ {[%clk 0:00:06.1]} 81... Kg6 {[%clk 0:00:04.8]} 82. Re5 {[%clk
0:00:06.5]} 82... Kf6 {[%clk 0:00:05.3]} 83. Kd5 {[%clk 0:00:06.9]} 83... Rd3+
{[%clk 0:00:05.3]} 84. Ke4 {[%clk 0:00:07.1]} 84... Rd1 {[%clk 0:00:05.9]} 85.
Kf3 {[%clk 0:00:07.4]} 85... Rf1+ {[%clk 0:00:05.9]} 86. Ke4 {[%clk 0:00:07.9]}
86... Rd1 {[%clk 0:00:06]} 87. Ra5 {[%clk 0:00:08.3]} 87... Rb1 {[%clk 0:00:06]}
88. Ra6+ {[%clk 0:00:08.7]} 88... Kf7 {[%clk 0:00:06.6]} 89. Kf5 {[%clk
0:00:08.9]} 89... Rb5+ {[%clk 0:00:06.9]} 90. Kg4 {[%clk 0:00:09.2]} 90... Rb1
{[%clk 0:00:07.6]} 91. e4 {[%clk 0:00:09.5]} 91... Kg7 {[%clk 0:00:07.5]} 92.
Kf5 {[%clk 0:00:09.6]} 92... Kf7 {[%clk 0:00:08.2]} 93. Ra7+ {[%clk 0:00:08.9]}
93... Kf8 {[%clk 0:00:08.4]} 94. e5 {[%clk 0:00:09.3]} 94... Rb6 {[%clk
0:00:08.7]} 95. e6 {[%clk 0:00:08.9]} 95... Rb5+ {[%clk 0:00:08.6]} 96. Kf6
{[%clk 0:00:09.1]} 96... Rb8 {[%clk 0:00:09.3]} 97. f5 {[%clk 0:00:09.1]} 97...
Re8 {[%clk 0:00:09.1]} 98. Rh7 {[%clk 0:00:08.2]} 98... Kg8 {[%clk 0:00:09.1]}
99. Rg7+ {[%clk 0:00:08.6]} 99... Kh8 {[%clk 0:00:09]} 100. Rg1 {[%clk
0:00:07.9]} 100... Rf8+ {[%clk 0:00:09.1]} 101. Ke7 {[%clk 0:00:08]} 101... Rg8
{[%clk 0:00:08.4]} 102. Kf7 {[%clk 0:00:07.5]} 102... Rxg1 {[%clk 0:00:07.5]}
103. e7 {[%clk 0:00:08]} 103... Rg7+ {[%clk 0:00:06.8]} 104. Kf8 {[%clk
0:00:08]} 104... Rg8+ {[%clk 0:00:05.6]} 105. Kf7 {[%clk 0:00:08.5]} 105... Rg7+
{[%clk 0:00:06.3]} 106. Ke6 {[%clk 0:00:08.8]} 106... Rg8 {[%clk 0:00:05.4]}
107. f6 {[%clk 0:00:08.8]} 107... Kh7 {[%clk 0:00:05.4]} 108. f7 {[%clk
0:00:09.1]} 108... Rg6+ {[%clk 0:00:05.4]} 109. Kd7 {[%clk 0:00:09]} 109... Rf6
{[%clk 0:00:05.4]} 110. f8=Q {[%clk 0:00:08.8]} 110... Rxf8 {[%clk 0:00:02.1]}
111. exf8=Q {[%clk 0:00:08.4]} 111... Kg6 {[%clk 0:00:03]} 112. Ke6 {[%clk
0:00:08.4]} 112... Kh7 {[%clk 0:00:03.6]} 113. Qf5+ {[%clk 0:00:07.8]} 113...
Kg7 {[%clk 0:00:02.7]} 114. Qg4+ {[%clk 0:00:07.5]} 114... Kh7 {[%clk
0:00:02.8]} 115. Kf7 {[%clk 0:00:07.4]} 115... Kh6 {[%clk 0:00:02.8]} 116. Qg6#
{[%clk 0:00:07.5]} 1-0